Cogmind - Beta 10.2 @@@ ROGUE MODE // 2022.02.10 @ 22:19:52 Player: Avari3l Result: Self-destructed Performance ------------- Evolutions (9) 4500 Regions Visited (21) 4200 Robots Destroyed (210) 1050 Value Destroyed (10728) 10728 Prototype IDs (38) 760 Alien Tech Used (0) 0 Bonus (1804) 1804 TOTAL SCORE: 23042 Bonus ------- High Alert Combat Kills 693 Follower Combat Kills 1392 Network Hubs Disabled 200 Aligned with FarCom 300 Met R17 at Cetus 500 Friendly Fire -1281 Cogmind --------- Core Integrity 1494/1600 Matter 265/300 Energy 350/350 System Corruption 12% Temperature Cool (0) Movement Hovering (60) Location -1/Access Parts ------- > --- POWER (2) -------- Quantum Reactor > --- PROPULSION (7) --- Antigrav Array > --- UTILITY (12) ----- Improved Signal Interpreter Advanced Terrain Scan Processor > --- WEAPON (4) ------- Power Sword > --- INVENTORY (4) ---- (None) Peak State ------------ > --- POWER ------------ Particle Reactor > --- PROPULSION ------- Biometal Medium Treads Myomer Leg Myomer Leg Myomer Leg Biometal Leg Centrium Leg > --- UTILITY ---------- Advanced Heat Sink Advanced Heat Sink Advanced Heat Sink High-capacity Storage Unit High-capacity Storage Unit Improved Signal Interpreter Advanced Terrain Scan Processor Advanced Core Analyzer Advanced Thermal Shield Hacking Suite Advanced Hacking Suite Improved Dynamic Insulation System > --- WEAPON ----------- Gamma Rifle Gamma Rifle Quantum Rifle Enhanced Nova Cannon > --- INVENTORY -------- Quantum Reactor Experimental Heat Sink Terrain Scanner Advanced Terrain Scan Processor Advanced Target Analyzer Advanced Particle Charger System Guard Compact HERF Cannon Hardcell Cannon Mini Smartbomb Launcher Power Sword [Rating: 148] Favorites ----------- Power Improved Ion Engine Engine Improved Ion Engine Power Core Fission Core Reactor Quantum Reactor Propulsion Heavy Treads Treads Heavy Treads Leg Carbon-fiber Leg Wheel Compact Wheel Hover Unit Gravmag System Utility High-capacity Storage Unit Device Advanced Heat Sink Storage High-capacity Storage Unit Processor Target Analyzer Hackware Advanced Hacking Suite Protection Improved Medium Armor Plating Weapon Railgun Energy Gun Quantum Rifle Energy Cannon Proton Cannon Ballistic Gun Railgun Ballistic Cannon Enhanced Gauss Cannon Launcher Mini Grenade Launcher Impact Weapon Power Maul Slashing Weapon Power Sword Build | -11 -10 -9 -9 -9 -8 -8 -7 -7 -7 -6 -5 -5 -5 -5 -5 -5 -5 -4 -3 -2 -1 ------- Run | Scr Mat Mat Min Exi Min Mat Fac Was Fac Fac Fac Was Fac Ext Cet Arc Hub Fac Res Res Acc Slots Evolved 18 | . . 2 . . . 2 2 . . 2 2 . . . . . . 2 2 2 2 Power 1 | . . . . . . . . . . . . . . . . . . . . . 1 Propulsion 5 | . . 1 . . . . 1 . . 1 . . . . . . . . 1 . 1 Utility 10 | . . 1 . . . 1 1 . . 1 2 . . . . . . 2 . 2 . Weapon 2 | . . . . . . 1 . . . . . . . . . . . . 1 . . Parts Attached 388 | . 23 21 4 1 9 10 11 6 27 64 6 4 22 17 28 6 16 16 46 45 6 Power 28 | . 2 2 . . . 2 1 . 3 6 . 1 . 3 1 1 1 . 1 3 1 Engine 17 | . 2 2 . . . 2 1 . 3 6 . . . 1 . . . . . . . Core 2 | . . . . . . . . . . . . . . 2 . . . . . . . Reactor 9 | . . . . . . . . . . . . 1 . . 1 1 1 . 1 3 1 Propulsion 80 | . 8 6 . . 1 5 4 . 7 14 1 2 2 . 4 2 6 2 8 7 1 Treads 52 | . 3 6 . . 1 5 4 . 2 6 . 2 2 . 4 2 6 2 6 1 . Leg 25 | . 5 . . . . . . . 3 8 1 . . . . . . . 2 6 . Wheel 1 | . . . . . . . . . 1 . . . . . . . . . . . . Hover 2 | . . . . . . . . . 1 . . . . . . . . . . . 1 Flight . | . . . . . . . . . . . . . . . . . . . . . . Utility 141 | . 5 8 3 1 1 1 5 2 12 20 4 1 9 7 8 1 3 8 19 20 3 Device 72 | . 2 2 1 . . 1 3 1 6 12 1 . 6 1 2 1 . 4 12 15 2 Storage 16 | . 3 2 . 1 . . . . 1 2 . . . 2 . . 2 1 2 . . Processor 10 | . . . . . . . 2 . 1 . 1 . . 1 . . . . 2 2 1 Hackware 3 | . . . . . . . . . . . . . . . 1 . . . 1 1 . Protection 40 | . . 4 2 . 1 . . 1 4 6 2 1 3 3 5 . 1 3 2 2 . Artifact . | . . . . . . . . . . . . . . . . . . . . . . Weapon 139 | . 8 5 1 . 7 2 1 4 5 24 1 . 11 7 15 2 6 6 18 15 1 Energy Gun 51 | . 7 2 . . 2 1 . . 1 10 . . 2 . 4 2 4 3 7 6 . Energy Cannon 30 | . . 2 . . 1 1 . 1 1 8 . . 4 3 3 . . . 1 5 . Ballistic Gun 24 | . 1 . . . 1 . 1 2 1 . . . 2 2 4 . 1 1 7 1 . Ballistic Cannon 10 | . . 1 . . 2 . . . . 2 1 . 1 1 1 . . . . 1 . Launcher 12 | . . . 1 . 1 . . 1 1 2 . . 1 1 3 . . 1 . . . Special Weapon . | . . . . . . . . . . . . . . . . . . . . . . Impact Weapon 2 | . . . . . . . . . 1 1 . . . . . . . . . . . Slashing Weapon 10 | . . . . . . . . . . 1 . . 1 . . . 1 1 3 2 1 Piercing Weapon . | . . . . . . . . . . . . . . . . . . . . . . Special Melee Weapon . | . . . . . . . . . . . . . . . . . . . . . . Unidentified Prototypes 13 | . . 1 . . . 1 . 1 . 2 . . 1 . 4 . . 1 2 . . Parts Lost 105 | . 6 1 . . 4 . 1 4 5 13 . . 1 1 9 2 2 6 13 32 5 Power 9 | . . . . . . . . . 2 2 . . . . 1 1 . . 1 2 . Propulsion 21 | . . . . . 1 . . 1 1 4 . . . . 2 1 1 1 2 7 . Utility 34 | . 1 . . . 1 . . 1 1 3 . . . 1 1 . . 3 4 13 5 Weapon 41 | . 5 1 . . 2 . 1 2 1 4 . . 1 . 5 . 1 2 6 10 . Highest Loss Streak 19 | . 3 1 . . 2 . 1 4 4 6 . . 1 1 9 1 1 2 4 19 4 Average Slot Usage (%) 89 | . 91 99 100 100 99 100 99 51 69 93 100 96 87 87 86 91 91 87 88 85 34 Engine 4 | . 14 11 11 11 11 9 7 3 6 5 5 3 . . . . . . . . . Reactor 1 | . . . . . . . . . . . . 1 5 . 2 5 4 5 4 3 3 Treads 16 | . 17 33 33 33 33 27 30 15 1 7 6 8 17 17 15 20 22 15 16 9 . Leg 5 | . 10 . . . . . . . 13 20 21 16 . . . . . . . 11 . Device 7 | . 3 . . . . 9 7 3 13 10 11 11 14 6 5 5 5 9 10 13 3 Storage 12 | . 18 22 22 22 22 18 15 8 5 12 11 11 11 11 11 11 11 10 9 7 . Processor 8 | . . . . . . . 7 3 6 6 11 11 11 11 17 17 17 15 13 12 15 Hackware 1 | . . . . . . . . . . . . . . . 3 5 5 5 7 7 3 Protection 7 | . . 9 10 11 10 9 7 3 7 7 11 11 7 14 6 5 4 8 4 2 . Energy Gun 6 | . 21 7 11 11 7 9 7 2 1 6 . . . . . 11 11 9 9 5 . Energy Cannon 4 | . . 6 . . 6 9 7 1 2 8 16 11 9 10 4 . . . 1 1 . Ballistic Gun 3 | . 4 . . . 7 . 6 5 4 . . . . 4 7 5 3 4 7 6 . Ballistic Cannon 1 | . . 8 . . . 9 . . . 1 . 5 4 . 2 . . . . . . Naked Turns 56 | . . . . . . . . 49 7 . . . . . . . . . . . . Heaviest Build 132 | 9 73 68 67 62 66 72 74 74 42 92 96 102 102 100 98 93 109 120 124 132 24 Greatest Support 215 | 20 40 69 69 69 69 76 80 80 48 76 66 170 170 170 180 177 167 173 215 197 36 Greatest Overweight (x) 33 | . 1 1 . . . 1 . . 1 20 2 33 . . 1 . . . . 3 . Average Overweight (x) . | . . . . . . . . . . 1 1 . . . . . . . . . . Largest Inventory Capacity 20 | . 20 20 18 18 18 18 18 18 8 18 18 18 18 18 18 18 20 20 20 20 4 Average Capacity 16 | . 12 18 18 18 18 18 18 11 7 16 18 18 18 18 18 18 18 20 20 19 4 Most Carried 20 | . 14 18 18 18 18 18 18 18 8 18 18 18 18 18 18 18 20 20 20 20 3 Average Carried 15 | . 8 17 17 18 17 17 16 11 4 14 17 18 17 17 15 17 18 18 18 16 . Final Capacity 20 | 6 20 18 18 18 18 18 18 4 8 18 18 18 18 18 18 18 20 20 20 4 4 Final Carried 19 | 6 14 17 18 18 17 18 18 4 8 18 18 18 17 18 17 18 18 17 19 4 . Class Distribution -------------------- 36% | Mutant 18% | Scavenger-Gunner 16% | Scavenger-Mutant 11% | Scavenger-Skirmisher 5% | Scavenger-Tank 3% | Skirmisher Dominant Class ---------------- Mutant | -10/Materials Mutant | -9/Materials Mutant | -9/Mines Mutant | -9/Exiles Mutant | -8/Mines Skirmisher | -8/Materials Mutant | -7/Factory Mutant | -7/Waste Mutant | -7/Factory Scavenger-Skirmisher | -6/Factory Scavenger-Gunner | -5/Factory Scavenger-Gunner | -5/Waste Scavenger-Mutant | -5/Factory Scavenger-Tank | -5/Extension Scavenger-Gunner | -5/Cetus Scavenger-Gunner | -5/Archives Scavenger-Mutant | -5/Hub_04(d) Scavenger-Gunner | -4/Factory Scavenger-Gunner | -3/Research Scavenger-Skirmisher | -2/Research Mutant | -1/Access Resources | -11 -10 -9 -9 -9 -8 -8 -7 -7 -7 -6 -5 -5 -5 -5 -5 -5 -5 -4 -3 -2 -1 ----------- Run | Scr Mat Mat Min Exi Min Mat Fac Was Fac Fac Fac Was Fac Ext Cet Arc Hub Fac Res Res Acc Matter Collected 6274 | 187 222 312 190 . 272 134 . . 288 847 . 100 364 439 621 106 101 428 859 804 . Remotely . | . . . . . . . . . . . . . . . . . . . . . . Salvage Created 11051 | . 589 476 57 . 716 225 . . 369 1547 . . 624 1065 825 373 101 680 1403 2001 . Parts 492 | . 26 32 1 . 23 10 . . 16 61 . . 31 46 23 14 3 43 72 91 . Haulers Intercepted 6 | . . 2 . . . . . . 1 2 . . . . . . . 1 . . . Recyclers Shooed 5 | . . . . . . . . . . . . . 2 . . . . . . 3 . Parts Field Recycled 15 | . . . . . . . . . 15 . . . . . . . . . . . . Retrieved Matter 129 | . . . . . . . . . 129 . . . . . . . . . . . . Parts Self-Destructed . | . . . . . . . . . . . . . . . . . . . . . . Prevented . | . . . . . . . . . . . . . . . . . . . . . . Kills | -11 -10 -9 -9 -9 -8 -8 -7 -7 -7 -6 -5 -5 -5 -5 -5 -5 -5 -4 -3 -2 -1 ------- Run | Scr Mat Mat Min Exi Min Mat Fac Was Fac Fac Fac Was Fac Ext Cet Arc Hub Fac Res Res Acc Combat Hostiles Destroyed 185 | . 14 9 10 . 15 5 . . 7 26 . . 11 12 19 4 1 8 20 24 . Melee 4 | . . . . . . . . . 1 1 . . . . . . . . . 2 . Guns 84 | . 14 . . . 5 . . . 2 8 . . 2 3 7 4 1 8 18 12 . Cannons 57 | . . 8 . . 2 5 . . . 11 . . 6 7 7 . . . 1 10 . AOE 34 | . . . 10 . 8 . . . 3 3 . . 3 2 5 . . . . . . Classes Destroyed 17 | . 1 2 2 . 3 . . . 2 5 . . 1 1 . . . . . . . Worker 12 | . . . . . 1 . . . 1 2 . . 3 1 . . . 1 . 3 . Builder 5 | . . . . . . . . . . 1 . . . 1 . . . 2 . 1 . Hauler 6 | . . 2 . . . . . . 1 2 . . . . . . . 1 . . . Recycler 4 | . . . 1 . . . . . . . . . . 1 . . . . . 2 . Watcher 4 | . . . . . . . . . . 1 . . . 1 1 . 1 . . . . Swarmer 14 | . . . . . . . . . . 5 . . 3 . 4 . . . . 2 . Saboteur 1 | . . . . . . . . . . 1 . . . . . . . . . . . Grunt 64 | . 14 1 . . 12 4 . . 3 7 . . 2 5 9 . . . . 7 . Brawler 6 | . . . . . 2 . . . 1 2 . . 1 . . . . . . . . Duelist 3 | . . . . . . . . . . 1 . . 1 . . . . . . 1 . Protector 1 | . . . . . . . . . 1 . . . . . . . . . . . . Sentry 32 | . . 8 . . . 1 . . . 3 . . 2 4 . 4 1 2 5 2 . Hunter 6 | . . . . . 1 . . . . 1 . . . . 1 . . . 2 1 . Programmer 40 | . . . . . . . . . 2 6 . . 2 . . . . 6 13 11 . Behemoth 2 | . . . . . . . . . . . . . . 2 . . . . . . . Cetus Guard 5 | . . . . . . . . . . . . . . . 5 . . . . . . Assembled 10 | . . . 10 . . . . . . . . . . . . . . . . . . Thug 1 | . . . . . . . . . . . . . . 1 . . . . . . . Savage 1 | . . . . . . . . . . . . . . 1 . . . . . . . Butcher 1 | . . . . . . . . . . . . . . 1 . . . . . . . Martyr 1 | . . . . . . . . . . . . . 1 . . . . . . . . Guerrilla 1 | . . . . . . . . . . . . . . 1 . . . . . . . Best Kill Streak 12 | . 2 2 3 . 4 3 . . 4 5 . . 5 5 12 2 2 3 7 10 . Combat Bots Only 11 | . 2 1 3 . 3 3 . . 4 5 . . 4 3 11 2 1 2 7 5 . Max Kills in Single Turn 3 | . 2 1 2 . 2 1 . . 2 3 . . 3 2 3 1 1 2 2 3 . Gunslinging 1 | . 1 . . . . . . . . 1 . . . . . . . . 1 . . Exploded 3 | . . . 2 . 1 . . . 2 3 . . 3 1 3 . . . . . . Melee 1 | . . . . . . . . . 1 1 . . . . . . . . . 1 . Uniques/NPCs Destroyed . | . . . . . . . . . . . . . . . . . . . . . . Combat | -11 -10 -9 -9 -9 -8 -8 -7 -7 -7 -6 -5 -5 -5 -5 -5 -5 -5 -4 -3 -2 -1 -------- Run | Scr Mat Mat Min Exi Min Mat Fac Was Fac Fac Fac Was Fac Ext Cet Arc Hub Fac Res Res Acc Damage Taken 23215 | . 1008 501 225 . 845 179 76 192 1304 3167 . . 911 763 2470 667 697 1087 3157 5584 382 Core 3469 | . 156 46 . . 96 16 . 89 272 503 . . 154 19 187 69 66 40 354 1296 106 Absorbed by Shields 64 | . . . . . . . . . . . . . . 64 . . . . . . . Core Remaining (%) 61 | 100 37 . . . 64 97 . . 48 40 . . . . . . 50 96 72 10 . Volleys Fired 602 | . 63 29 15 . 43 15 . 8 19 89 . . 46 34 33 12 8 47 67 74 . Largest 4 | . 2 2 1 . 2 3 . 2 2 3 . . 3 3 3 3 3 3 4 4 . Hottest 364 | . 100 120 30 . 101 154 . 50 78 223 . . 180 198 198 209 254 223 336 364 . Shots Fired 1345 | . 103 56 15 . 81 37 . 10 29 191 . . 80 76 89 32 15 100 235 196 . Gun 883 | . 103 17 . . 55 11 . 7 25 78 . . 12 20 52 32 15 100 210 146 . Cannon 417 | . . 39 . . 22 26 . . 2 110 . . 66 45 32 . . . 25 50 . Launcher 45 | . . . 15 . 4 . . 3 2 3 . . 2 11 5 . . . . . . Special . | . . . . . . . . . . . . . . . . . . . . . . Kinetic 458 | . 32 20 . . 38 11 . 7 16 7 . . 23 20 60 12 5 27 96 84 . Thermal 709 | . 71 31 . . . 15 . . . 174 . . 44 23 16 20 10 73 133 99 . Explosive 45 | . . . 15 . 4 . . 3 2 3 . . 2 11 5 . . . . . . Electromagnetic 133 | . . 5 . . 39 11 . . 11 7 . . 11 22 8 . . . 6 13 . Robot Hit Streak 32 | . 18 21 2 . 13 5 . 14 7 13 . . 28 13 8 21 10 15 25 32 . Robot Miss Streak 6 | . 3 1 2 . 4 2 . . 4 5 . . 1 3 4 1 1 3 3 6 . Penetration Max 1 | . . . . . 1 . . . . . . . 1 1 1 . . 1 1 1 . Secondary Targets 8 | . 3 . . . . . . . . 1 . . . . . 1 . . 1 2 . Max Gunslinging Chain 1 | . 1 . . . . . . . . 1 . . . . . 1 . . 1 1 . Shots Hit Robots 938 | . 78 48 5 . 64 23 . 9 34 123 . . 43 55 49 29 12 51 174 141 . Core Hits 452 | . 32 14 16 . 32 8 . 1 41 45 . . 29 40 34 15 5 21 57 62 . Critical Hits 52 | . . 1 . . . 1 . . . 11 . . 9 4 11 4 . 2 6 3 . Critical Kills 23 | . . 1 . . . 1 . . . 7 . . 3 2 4 . . 1 2 2 . Critical Parts Destroyed 25 | . . . . . . . . . . 3 . . 6 2 7 1 . 1 4 1 . Melee Attacks 71 | . . . . . . . . . 14 23 . . 4 . . . 1 9 4 6 10 Impact 37 | . . . . . . . . . 14 23 . . . . . . . . . . . Slashing 34 | . . . . . . . . . . . . . 4 . . . 1 9 4 6 10 Piercing . | . . . . . . . . . . . . . . . . . . . . . . Sneak Attacks 8 | . . . . . . . . . . 3 . . 4 . . . . . . 1 . Combat Hostiles . | . . . . . . . . . . . . . . . . . . . . . . Follow-up Attacks . | . . . . . . . . . . . . . . . . . . . . . . Damage Inflicted 30820 | . 836 951 818 . 1975 454 . 405 999 4148 . . 2295 2929 2297 794 343 1642 4815 5119 . Guns 15497 | . 830 213 . . 809 76 . 115 286 1484 . . 375 332 879 794 343 1615 4295 3051 . Cannons 8184 | . . 736 . . 429 378 . . 22 1518 . . 1103 1240 722 . . . 492 1544 . Explosions 5217 | . . . 818 . 734 . . 290 328 433 . . 308 1344 696 . . . . 266 . Melee 1675 | . . . . . . . . . 308 663 . . 456 . . . . . . 248 . Ramming 247 | . 6 2 . . 3 . . . 55 50 . . 53 13 . . . 27 28 10 . Kinetic 8790 | . 198 395 . . 588 176 . 115 165 183 . . 775 332 1105 303 55 448 2007 1945 . Thermal 13269 | . 632 485 . . 500 202 . . . 2918 . . 416 851 326 491 288 1167 2685 2308 . Explosive 4283 | . . . 818 . 234 . . 290 328 252 . . 308 1091 696 . . . . 266 . Electromagnetic 2556 | . . 69 . . 650 76 . . 143 82 . . 287 642 170 . . . 95 342 . Impact 971 | . . . . . . . . . 308 663 . . . . . . . . . . . Slashing 704 | . . . . . . . . . . . . . 456 . . . . . . 248 . Piercing . | . . . . . . . . . . . . . . . . . . . . . . Highest Corruption 10 | . 2 . . . . 1 . 5 10 2 . . 2 3 3 3 5 8 9 10 6 Average Corruption 4 | . 2 . . . . 1 . 5 7 2 . . 1 2 3 3 3 8 5 3 3 Corruption Purged . | . . . . . . . . . . . . . . . . . . . . . . Effects 238 | . 9 . . . . 1 . 3 57 19 . . 1 22 16 5 6 44 37 18 . Message Errors 41 | . 2 . . . . . . . 11 2 . . . 5 2 2 1 6 7 3 . Matter Fused 44 | . . . . . . . . . 16 . . . . 3 3 1 2 11 8 . . Heat Flow Errors 23 | . 1 . . . . . . 1 4 4 . . . 5 1 1 1 3 2 . . Energy Discharges 32 | . 5 . . . . . . . 6 3 . . 1 4 4 1 1 2 2 3 . Parts Rejected 3 | . . . . . . . . 1 1 . . . . . . . . . . 1 . Data Loss (minor) 37 | . 1 . . . . 1 . 1 7 5 . . . 2 3 . 1 8 7 1 . Data Loss (major) 11 | . . . . . . . . . 3 . . . . . . . . 4 2 2 . Misfires 5 | . . . . . . . . . 2 . . . . . . . . 1 1 1 . Alerts 1 | . . . . . . . . . 1 . . . . . . . . . . . . Misdirections 4 | . . . . . . . . . 4 . . . . . . . . . . . . Targeting Errors 33 | . . . . . . . . . 2 5 . . . 1 3 . . 7 8 7 . Weapon Failures 4 | . . . . . . . . . . . . . . 2 . . . 2 . . . Overload Shots . | . . . . . . . . . . . . . . . . . . . . . . Overflow Damage 611 | . . . 74 . . 4 . . 46 130 . . 195 18 10 . . . 75 59 . Projectiles 189 | . . . . . . 4 . . . 32 . . 5 18 7 . . . 75 48 . Explosions 156 | . . . 74 . . . . . . 12 . . 67 . 3 . . . . . . Melee 266 | . . . . . . . . . 46 86 . . 123 . . . . . . 11 . Knockbacks 29 | . . . . . 3 3 . . 2 5 . . 6 . 3 . . . 1 6 . Impact 8 | . . . . . . . . . 2 4 . . . . . . . . 1 1 . Kinetic 20 | . . . . . 3 3 . . . 1 . . 5 . 3 . . . . 5 . Secondary 1 | . . . . . . . . . . . . . 1 . . . . . . . . Self-Inflicted Damage 689 | . . . 146 . 172 . . . 123 62 . . . 168 18 . . . . . . Shots 15 | . . . 4 . 4 . . . 2 1 . . . 3 1 . . . . . . Rammed 45 | . 1 1 1 . 3 . . . 25 . . . 4 1 . . . 3 4 2 . Targets Rammed 56 | . 1 1 1 . 3 . . . 32 4 . . 4 1 . . . 3 4 2 . Kicked 11 | . . . . . . . . . 7 4 . . . . . . . . . . . Crushed . | . . . . . . . . . . . . . . . . . . . . . . Highest Temperature 327 | . 300 255 4 . 221 225 . 200 225 262 . . 5 235 112 250 231 327 321 190 . Average Temperature 84 | . 115 78 4 . 78 76 . 115 100 79 . . 5 76 25 103 116 82 104 50 . Received Heat Transfer 3747 | . 507 156 20 . 315 90 . . 222 684 . . 123 166 540 99 96 45 162 486 36 Effects 1 | . . . . . . . . . . . . . . 1 . . . . . . . Energy Bleed 1 | . . . . . . . . . . . . . . 1 . . . . . . . Siege Activations . | . . . . . . . . . . . . . . . . . . . . . . Robots Corrupted 1 | . . . . . . . . . . 1 . . . . . . . . . . . Combat Hostiles 1 | . . . . . . . . . . 1 . . . . . . . . . . . Parts Fried 15 | . . . . . 1 . . . 3 4 . . 2 2 . . . . 2 1 . Impact Corruptions 8 | . . . . . . . . . 4 4 . . . . . . . . . . . Robots Melted 4 | . . 1 . . . . . . . 2 . . . . . . . . 1 . . Combat Hostiles 4 | . . 1 . . . . . . . 2 . . . . . . . . 1 . . Parts Melted 45 | . 3 2 . . . . . . . 9 . . . . 1 . 2 8 14 6 . Heat Transferred 16682 | . 1731 888 . . 500 296 . . . 3973 . . 550 600 300 666 333 1369 3108 2368 . Parts Sabotaged 3 | . . . . . . . . . . . . . . . . . 3 . . . . Parts Stolen . | . . . . . . . . . . . . . . . . . . . . . . Parts Stripped . | . . . . . . . . . . . . . . . . . . . . . . Power Chain Reactions 7 | . . . . . 5 . . . . 1 . . . 1 . . . . . . . Missiles Intercepted . | . . . . . . . . . . . . . . . . . . . . . . Alert | -11 -10 -9 -9 -9 -8 -8 -7 -7 -7 -6 -5 -5 -5 -5 -5 -5 -5 -4 -3 -2 -1 ------- Run | Scr Mat Mat Min Exi Min Mat Fac Was Fac Fac Fac Was Fac Ext Cet Arc Hub Fac Res Res Acc Peak Influence 864 | . 215 157 20 . 297 182 60 10 122 445 214 114 741 605 864 425 132 141 212 257 220 Initial 303 | . . 2 . . . 115 60 . . 14 214 74 75 303 261 286 78 59 63 21 146 Average 185 | . 58 46 12 . 143 121 36 2 28 210 214 96 503 474 665 382 108 58 74 83 181 Maximum Alert Level 3 | . 1 . . . 1 . . . . 2 1 . 3 2 3 2 . . 1 1 1 Low Security (%) 66 | . 99 100 100 . 65 100 100 100 100 38 . 100 12 . . . 100 100 93 94 53 Level 1 14 | . . . . . 34 . . . . 53 100 . 17 22 3 38 . . 6 5 46 Level 2 14 | . . . . . . . . . . 7 . . 59 77 30 61 . . . . . Level 3 3 | . . . . . . . . . . . . . 10 . 66 . . . . . . Level 4 . | . . . . . . . . . . . . . . . . . . . . . . Level 5 . | . . . . . . . . . . . . . . . . . . . . . . High Security . | . . . . . . . . . . . . . . . . . . . . . . Max Security . | . . . . . . . . . . . . . . . . . . . . . . Squads Dispatched 43 | . 3 . 1 . 1 1 1 . 3 10 . . 4 . . . 1 5 5 8 . Investigation 4 | . 1 . 1 . . 1 . . . . . . . . . . . . 1 . . Extermination 21 | . . . . . . . 1 . 2 6 . . 1 . . . . 3 4 4 . Reinforcement 8 | . 2 . . . 1 . . . . 3 . . . . . . . 1 . 1 . Assault 5 | . . . . . . . . . 1 1 . . 2 . . . 1 . . . . Garrison 5 | . . . . . . . . . . . . . 1 . . . . 1 . 3 . Intercept . | . . . . . . . . . . . . . . . . . . . . . . Construction Impeded 4 | . . . . . 1 . . . . 3 . . . . . . . . . . . Haulers Reinforced . | . . . . . . . . . . . . . . . . . . . . . . Stealth | -11 -10 -9 -9 -9 -8 -8 -7 -7 -7 -6 -5 -5 -5 -5 -5 -5 -5 -4 -3 -2 -1 --------- Run | Scr Mat Mat Min Exi Min Mat Fac Was Fac Fac Fac Was Fac Ext Cet Arc Hub Fac Res Res Acc Distress Signals 12 | . 2 1 . . 1 . . . . . . . . 3 2 . 1 . . 2 . Communications Jammed 17 | . . . . . . . . . 17 . . . . . . . . . . . . Distress Signals 17 | . . . . . . . . . 17 . . . . . . . . . . . . Times Spotted 302 | . 24 15 10 . 15 6 . 5 15 36 . 5 17 27 31 6 9 14 24 38 5 Peak Tracking Total 12 | . 7 3 3 . 3 3 1 5 5 5 . 4 5 5 12 2 6 3 4 10 5 Tactical Retreats 12 | . . . 1 . 2 . . . 1 2 . . 1 3 . . . . . 1 1 Traps | -11 -10 -9 -9 -9 -8 -8 -7 -7 -7 -6 -5 -5 -5 -5 -5 -5 -5 -4 -3 -2 -1 ------- Run | Scr Mat Mat Min Exi Min Mat Fac Was Fac Fac Fac Was Fac Ext Cet Arc Hub Fac Res Res Acc Traps Triggered 21 | . 2 . . . . 1 2 . 1 5 1 . 1 1 . . 4 1 2 . . Indirectly . | . . . . . . . . . . . . . . . . . . . . . . Trap Hack Attempts . | . . . . . . . . . . . . . . . . . . . . . . Triggered . | . . . . . . . . . . . . . . . . . . . . . . Disarmed . | . . . . . . . . . . . . . . . . . . . . . . Reprogrammed . | . . . . . . . . . . . . . . . . . . . . . . Reused . | . . . . . . . . . . . . . . . . . . . . . . Traps Extracted . | . . . . . . . . . . . . . . . . . . . . . . Installed . | . . . . . . . . . . . . . . . . . . . . . . Triggered . | . . . . . . . . . . . . . . . . . . . . . . Machines | -11 -10 -9 -9 -9 -8 -8 -7 -7 -7 -6 -5 -5 -5 -5 -5 -5 -5 -4 -3 -2 -1 ---------- Run | Scr Mat Mat Min Exi Min Mat Fac Was Fac Fac Fac Was Fac Ext Cet Arc Hub Fac Res Res Acc Machines Disabled 22 | . 1 . . . 2 1 . . 2 . . . 4 3 3 2 . . . 4 . Max in Single Turn 2 | . 1 . . . 2 1 . . 1 . . . . 2 . 1 . . . 1 . Garrison Access 4 | . . . . . . . . . 1 . . . 1 . . . 1 1 . . . Network Hub 1 | . . . . . . . . . . . . . . . . . 1 . . . . Machines Sabotaged . | . . . . . . . . . . . . . . . . . . . . . . Garrisons Compromised . | . . . . . . . . . . . . . . . . . . . . . . Overloaded Fab Kills . | . . . . . . . . . . . . . . . . . . . . . . Fab Network Shutdowns 1 | . . . . . . . . . . 1 . . . . . . . . . . . Hacking | -11 -10 -9 -9 -9 -8 -8 -7 -7 -7 -6 -5 -5 -5 -5 -5 -5 -5 -4 -3 -2 -1 --------- Run | Scr Mat Mat Min Exi Min Mat Fac Was Fac Fac Fac Was Fac Ext Cet Arc Hub Fac Res Res Acc Machines Accessed 73 | . 8 10 1 2 . 10 2 . 7 9 . . 3 6 1 . 2 4 4 4 . Terminals 53 | . 6 7 . . . 8 1 . 6 6 . . 3 6 1 . 1 2 4 2 . Fabricators 3 | . . . . . . . 1 . 1 1 . . . . . . . . . . . Repair Stations 2 | . . 1 . . . . . . . . . . . . . . . . . 1 . Recycling Units 5 | . 2 1 . . . 1 . . . . . . . . . . . 1 . . . Scanalyzers 4 | . . 1 . . . 1 . . . 1 . . . . . . . . . 1 . Garrison Access 3 | . . . . . . . . . . 1 . . . . . . 1 1 . . . Total Hacks 176 | . 19 35 1 3 . 20 7 . 11 22 . . 6 11 4 . 4 8 13 12 . Successful 95 | . 9 24 1 3 . 8 3 . 5 9 . . 2 6 4 . 1 5 6 9 . Failed 81 | . 10 11 . . . 12 4 . 6 13 . . 4 5 . . 3 3 7 3 . Catastrophic 16 | . 2 1 . . . 3 . . 2 2 . . 2 1 . . 1 . 1 1 . Database Lockouts . | . . . . . . . . . . . . . . . . . . . . . . Manual 57 | . 7 18 . 1 . 11 . . 2 3 . . 5 1 1 . 1 4 . 3 . Terminals 127 | . 13 23 . . . 16 4 . 9 14 . . 6 11 4 . 2 6 13 6 . Fabricators 8 | . . . . . . . 3 . 2 3 . . . . . . . . . . . Repair Stations 4 | . . 2 . . . . . . . . . . . . . . . . . 2 . Recycling Units 10 | . 6 2 . . . 1 . . . . . . . . . . . 1 . . . Scanalyzers 18 | . . 8 . . . 3 . . . 3 . . . . . . . . . 4 . Garrison Access 5 | . . . . . . . . . . 2 . . . . . . 2 1 . . . Terminal Hacks 55 | . 5 10 1 3 . 4 . . 4 5 . . 2 6 4 . . 1 6 4 . Record 12 | . . . . 2 . . . . . 1 . . 1 . 4 . . 1 3 . . Part Schematic 1 | . . 1 . . . . . . . . . . . . . . . . . . . Robot Analysis 6 | . 1 4 . . . . . . 1 . . . . . . . . . . . . Prototype ID Bank 1 | . . . . . . . . . . . . . . 1 . . . . . . . Open Door 4 | . . . 1 . . . . . . . . . . 3 . . . . . . . Level Access Points 3 | . . . . . . . . . 1 . . . . . . . . . 1 1 . Branch Access Points 2 | . 1 . . . . 1 . . . . . . . . . . . . . . . Terminal Index 5 | . . 1 . . . 1 . . 1 1 . . . . . . . . 1 . . Alert Level 4 | . . . . . . 1 . . 1 1 . . . 1 . . . . . . . Unreport Threat 7 | . 1 2 . . . . . . . 1 . . . . . . . . 1 2 . Locate Traps 8 | . 2 1 . . . 1 . . . 1 . . 1 1 . . . . . 1 . Hauler Manifests 1 | . . 1 . . . . . . . . . . . . . . . . . . . EX-Prototype ID Bank 1 | . . . . 1 . . . . . . . . . . . . . . . . . Fabricator Hacks 6 | . . . . . . . 3 . 1 2 . . . . . . . . . . . Network Status 1 | . . . . . . . 1 . . . . . . . . . . . . . . Load Schematic 3 | . . . . . . . 1 . 1 1 . . . . . . . . . . . Build 2 | . . . . . . . 1 . . 1 . . . . . . . . . . . Repair Station Hacks 4 | . . 2 . . . . . . . . . . . . . . . . . 2 . Scan Component 2 | . . 1 . . . . . . . . . . . . . . . . . 1 . Repair 2 | . . 1 . . . . . . . . . . . . . . . . . 1 . Recycling Unit Hacks 4 | . 2 1 . . . . . . . . . . . . . . . 1 . . . Report Inventory 1 | . . 1 . . . . . . . . . . . . . . . . . . . Retrieve Components 3 | . 2 . . . . . . . . . . . . . . . . 1 . . . Scanalyzer 14 | . . 7 . . . 2 . . . 2 . . . . . . . . . 3 . Insert Component 7 | . . 4 . . . 1 . . . 1 . . . . . . . . . 1 . Analyze 7 | . . 3 . . . 1 . . . 1 . . . . . . . . . 2 . Garrison Access Hacks 1 | . . . . . . . . . . . . . . . . . . 1 . . . Seal Access 1 | . . . . . . . . . . . . . . . . . . 1 . . . Unauthorized Hacks 11 | . 2 4 . . . 2 . . . . . . . . . . 1 2 . . . Terminals 9 | . 1 3 . . . 2 . . . . . . . . . . 1 2 . . . Track 1 | . 1 . . . . . . . . . . . . . . . . . . . . Botnet 8 | . . 3 . . . 2 . . . . . . . . . . 1 2 . . . Fabricators . | . . . . . . . . . . . . . . . . . . . . . . Repair Stations . | . . . . . . . . . . . . . . . . . . . . . . Recycling Units 2 | . 1 1 . . . . . . . . . . . . . . . . . . . Monitor 1 | . . 1 . . . . . . . . . . . . . . . . . . . Reject 1 | . 1 . . . . . . . . . . . . . . . . . . . . Scanalyzers . | . . . . . . . . . . . . . . . . . . . . . . Garrison Access . | . . . . . . . . . . . . . . . . . . . . . . Data Cores Recovered . | . . . . . . . . . . . . . . . . . . . . . . Used . | . . . . . . . . . . . . . . . . . . . . . . Hacking Detections 59 | . 8 8 . . . 10 1 . 5 9 . . 3 4 . . 2 2 4 3 . Full Trace Events 2 | . 1 . . . . 1 . . . . . . . . . . . . . . . Feedback Events . | . . . . . . . . . . . . . . . . . . . . . . Feedback Blocked . | . . . . . . . . . . . . . . . . . . . . . . Robot Schematics Acquired . | . . . . . . . . . . . . . . . . . . . . . . Robots Built . | . . . . . . . . . . . . . . . . . . . . . . Matter . | . . . . . . . . . . . . . . . . . . . . . . Time . | . . . . . . . . . . . . . . . . . . . . . . Total Robot Build Rating . | . . . . . . . . . . . . . . . . . . . . . . Part Schematics Acquired 6 | . . 4 . . . 1 . . . 1 . . . . . . . . . . . Parts Built 3 | . . . . . . . 2 . . 1 . . . . . . . . . . . Matter 248 | . . . . . . . 146 . . 102 . . . . . . . . . . . Time 124 | . . . . . . . 73 . . 51 . . . . . . . . . . . Total Part Build Rating 7 | . . . . . . . 6 . . 1 . . . . . . . . . . . Parts Repaired 1 | . . 1 . . . . . . . . . . . . . . . . . . . Time 134 | . . 26 . . . . . . . . . . . . . . . . . 108 . Parts Recycled . | . . . . . . . . . . . . . . . . . . . . . . Recycled Matter . | . . . . . . . . . . . . . . . . . . . . . . Retrieved Matter . | . . . . . . . . . . . . . . . . . . . . . . Retrieved Components 17 | . 10 . . . . . . . . . . . . . . . . 7 . . . Parts Scanalyzed 6 | . . 3 . . . 1 . . . 1 . . . . . . . . . 1 . Part Schematics Acquired 5 | . . 3 . . . 1 . . . 1 . . . . . . . . . . . Parts Damaged . | . . . . . . . . . . . . . . . . . . . . . . Bothacking | -11 -10 -9 -9 -9 -8 -8 -7 -7 -7 -6 -5 -5 -5 -5 -5 -5 -5 -4 -3 -2 -1 ------------ Run | Scr Mat Mat Min Exi Min Mat Fac Was Fac Fac Fac Was Fac Ext Cet Arc Hub Fac Res Res Acc Used RIF Installer . | . . . . . . . . . . . . . . . . . . . . . . Robots Hacked . | . . . . . . . . . . . . . . . . . . . . . . Non-combat . | . . . . . . . . . . . . . . . . . . . . . . Combat . | . . . . . . . . . . . . . . . . . . . . . . Robot Hacks Applied . | . . . . . . . . . . . . . . . . . . . . . . Relay Couplers Released 5 | . . . . . . . . . . . . . 2 . . . 3 . . . . Machine Destruction 5 | . . . . . . . . . . . . . 2 . . . 3 . . . . Robots Rewired 15 | . . . . . . . . . . . . . . 15 . . . . . . . Allies Hacked . | . . . . . . . . . . . . . . . . . . . . . . Hacks Repelled . | . . . . . . . . . . . . . . . . . . . . . . Allies | -11 -10 -9 -9 -9 -8 -8 -7 -7 -7 -6 -5 -5 -5 -5 -5 -5 -5 -4 -3 -2 -1 -------- Run | Scr Mat Mat Min Exi Min Mat Fac Was Fac Fac Fac Was Fac Ext Cet Arc Hub Fac Res Res Acc Total Allies 39 | . . . . . . . . . . . . 19 . 20 . . . . . . . Largest Group 19 | . . . . . . . . . . . . 19 10 8 8 . . . . . . Highest-Rated Group 714 | . . . . . . . . . . . . 714 439 385 278 . . . . . . Highest-Rated Ally 156 | . . . . . . . . . . . . 50 50 156 37 . . . . . . Total Orders . | . . . . . . . . . . . . . . . . . . . . . . Ally Attacks 262 | . . . . . . . . . . . . 80 50 53 79 . . . . . . Total Damage 7746 | . . . . . . . . . . . . 3212 1993 1055 1486 . . . . . . Kills 42 | . . . . . . . . . . . . 10 10 12 10 . . . . . . Allies Corrupted 2 | . . . . . . . . . . . . . 1 1 . . . . . . . Allies Melted . | . . . . . . . . . . . . . . . . . . . . . . Intel | -11 -10 -9 -9 -9 -8 -8 -7 -7 -7 -6 -5 -5 -5 -5 -5 -5 -5 -4 -3 -2 -1 ------- Run | Scr Mat Mat Min Exi Min Mat Fac Was Fac Fac Fac Was Fac Ext Cet Arc Hub Fac Res Res Acc Robot Analysis Total 6 | . 1 4 . . . . . . 1 . . . . . . . . . . . . Derelict Logs Recovered 1 | . . . 1 . . . . . . . . . . . . . . . . . . Drone Launches . | . . . . . . . . . . . . . . . . . . . . . . Drone Recoveries . | . . . . . . . . . . . . . . . . . . . . . . Exploration | -11 -10 -9 -9 -9 -8 -8 -7 -7 -7 -6 -5 -5 -5 -5 -5 -5 -5 -4 -3 -2 -1 ------------- Run | Scr Mat Mat Min Exi Min Mat Fac Was Fac Fac Fac Was Fac Ext Cet Arc Hub Fac Res Res Acc Turns Passed 20199 | . 1453 1222 826 440 704 734 564 111 1894 2773 95 276 1335 1691 886 451 309 1414 1631 1144 246 Spaces Moved 10460 | 1 748 601 480 275 333 369 306 119 1251 1340 54 159 647 764 442 224 148 654 773 637 135 Core 247 | . . . . . . . . 97 13 7 . 1 . . . . . . . 110 19 Treads 6774 | . 451 601 480 275 333 369 306 22 . 22 . 38 647 764 442 224 148 654 773 225 . Legs 3323 | 1 297 . . . . . . . 1238 1311 54 120 . . . . . . . 302 . Wheels . | . . . . . . . . . . . . . . . . . . . . . . Hover 116 | . . . . . . . . . . . . . . . . . . . . . 116 Flight . | . . . . . . . . . . . . . . . . . . . . . . Fastest Speed 50 | 120 120 160 160 160 160 163 170 50 50 123 150 150 160 160 160 162 160 160 150 50 50 Average Speed 152 | 120 155 170 160 160 160 171 170 72 134 157 155 162 160 160 161 162 161 160 154 118 58 Slowest Speed 1700 | 120 180 180 160 160 160 186 170 170 160 1050 180 1700 160 160 180 163 163 160 160 210 60 Overloaded Moves . | . . . . . . . . . . . . . . . . . . . . . . Propulsion Burnouts . | . . . . . . . . . . . . . . . . . . . . . . Robots Hopped . | . . . . . . . . . . . . . . . . . . . . . . Cave-ins Triggered 5 | . . . . . . . . . . 1 . . . . . . . 1 . . 3 Exploration Rate (%) 44 | 2 97 45 84 62 75 32 8 88 16 30 2 78 15 94 77 98 19 18 19 16 3 Regions Visited 21 Branch Regions 7 Pre-discovered Areas 1 | . . . . 1 . . . . . . . . . . . . . . . . . Known Exits Taken 9 | . . . . . . 1 . . 1 . . . . 1 1 1 1 1 1 1 . Unknown Exits Taken 8 | 1 1 1 1 1 1 . . . . 1 . . 1 . . . . . . . . Scrap Searched 2 | . . . 1 . 1 . . . . . . . . . . . . . . . . Spaces Dug 109 | . . 2 . . . 4 . . . 29 . . 23 . . . 1 25 9 6 10 Terrain Destroyed 684 | . . 5 133 . 121 7 . 12 13 67 . . 54 42 127 2 2 39 37 13 10 Melee 27 | . . . . . . . . . . 2 . . . . . . 1 9 4 1 10 Projectile 219 | . . 5 . . 4 7 . . . 56 . . 32 7 31 2 1 30 33 11 . AOE 438 | . . . 133 . 117 . . 12 13 9 . . 22 35 96 . . . . 1 . Terrain Rammed . | . . . . . . . . . . . . . . . . . . . . . . Walls Destroyed . | . . . . . . . . . . . . . . . . . . . . . . Machines Disabled . | . . . . . . . . . . . . . . . . . . . . . . Actions | -11 -10 -9 -9 -9 -8 -8 -7 -7 -7 -6 -5 -5 -5 -5 -5 -5 -5 -4 -3 -2 -1 --------- Run | Scr Mat Mat Min Exi Min Mat Fac Was Fac Fac Fac Was Fac Ext Cet Arc Hub Fac Res Res Acc Total 13441 | . 939 743 524 276 419 444 349 132 1392 1796 66 179 865 1164 540 288 201 928 1040 871 285 Wait 1301 | . 76 55 12 . 28 32 27 . 23 228 . 11 121 130 14 36 15 173 112 74 134 Move 10439 | . 747 600 479 274 332 368 306 118 1250 1338 54 158 646 763 441 223 147 653 772 636 134 Hop . | . . . . . . . . . . . . . . . . . . . . . . Pick Up 185 | . 14 15 7 . 3 9 3 . 17 25 3 . 6 6 13 7 9 16 21 11 . Fast Attach 114 | . 7 5 . . 1 . . . 16 27 2 3 8 7 5 1 7 3 10 10 2 Attach 105 | . 2 3 . . 3 2 3 . 8 9 2 . 1 2 9 3 5 10 17 22 4 Detach 15 | . . 1 . . . . . . 1 2 . . . 1 . . . 1 2 7 . Swap 170 | . 14 13 4 1 5 8 8 6 3 28 2 1 14 8 14 2 4 3 19 13 . Drop 181 | . 15 21 6 1 1 10 2 . 9 22 3 6 14 13 11 4 5 10 12 16 . Fire 602 | . 63 29 15 . 43 15 . 8 19 89 . . 46 34 33 12 8 47 67 74 . Melee 71 | . . . . . . . . . 14 23 . . 4 . . . 1 9 4 6 10 Ram 1 | . . . . . . . . . . . . . . . . . . . . 1 . Kick 36 | . . . . . . . . . 32 4 . . . . . . . . . . . Crush 19 | . 1 1 1 . 3 . . . . . . . 4 1 . . . 3 4 1 . Escape Stasis 2 | . . . . . . . . . . 1 . . . . . . . . . . 1 Rewire 200 | . . . . . . . . . . . . . 1 199 . . . . . . . Trap . | . . . . . . . . . . . . . . . . . . . . . . Miscellaneous . | . . . . . . . . . . . . . . . . . . . . . . Route ------- -11/Scrapyard -10/Materials (discovered 5 exits: *Mat x3 / *Min x2) -9/Materials (discovered 2 exits: *Mat / *Min) -9/Mines (discovered 3 exits: *Mat x2 / *Exi) -9/Exiles -8/Mines -8/Materials (discovered 2 exits: *Fac x2) -7/Factory -7/Waste -7/Factory (discovered 4 exits: *Fac x4) -6/Factory (discovered 2 exits: [*Fac] / [*Low]) -5/Factory -5/Waste -5/Factory -5/Extension (discovered 3 exits: *Fac x2 / *Cet) -5/Cetus (discovered 3 exits: *Fac x2 / *Arc) -5/Archives (discovered 3 exits: *Fac / *Hub x2) -5/Hub_04(d) (discovered 2 exits: *Fac x2) -4/Factory -3/Research (discovered 4 exits: *Res x3 / *Tes) -2/Research (discovered 3 exits: *Acc x3) -1/Access History --------- Turn | Location | Event 1 | -11/Scrapyard | Discovered new exit (range 0) 1 | -11/Scrapyard | Entered Materials 244 | -10/Materials | Discovered new exit (range 15) 307 | -10/Materials | Build established: Mutant 390 | -10/Materials | Core integrity fell below 50% 412 | -10/Materials | Lost 3 parts (3w) 417 | -10/Materials | Discovered new exit (range 11) 456 | -10/Materials | Identified exit to Mines 587 | -10/Materials | Discovered new exit (range 7) 1137 | -10/Materials | Discovered new exit (range 5) 1454 | -10/Materials | Entered another Materials area 1454 | -9/Materials | Evolved 2 slots: Propulsion x1, Utility x1 1655 | -9/Materials | Discovered new exit (range 12) 2011 | -9/Materials | Discovered new exit (range 8) 2315 | -9/Materials | Repaired Lgt. Armor Plating 2676 | -9/Materials | Entered Mines 2677 | -9/Mines | Assembled infested the area 2684 | -9/Mines | Learned 2 Materials zone layouts 2928 | -9/Mines | Found a damaged Exp. Sensor Array with a note attached 2931 | -9/Mines | Found Prototype Device 3150 | -9/Mines | Met a Derelict shopkeep closing up shop 3408 | -9/Mines | Deemed a non-threat by the Exiles lab entrance 3410 | -9/Mines | Discovered new exit (range 5) 3419 | -9/Mines | Discovered new exit (range 8) 3424 | -9/Mines | Discovered new exit (range 16) 3502 | -9/Mines | Entered Exiles 3541 | -9/Exiles | Met 8R-AWN 3568 | -9/Exiles | Met EX-HEX 3616 | -9/Exiles | Met EX-BIN 3650 | -9/Exiles | Met EX-DEC 3661 | -9/Exiles | Learned location of Zion (-7) 3712 | -9/Exiles | Aligned with FarCom system 3714 | -9/Exiles | Given EX-Vault access code 3750 | -9/Exiles | Opened EX-Vault 3786 | -9/Exiles | Warned to stay clear of 0b10 Research branches 3925 | -9/Exiles | Discovered new exit (range 14) 3942 | -9/Exiles | Entered Mines 4614 | -8/Mines | Discovered new exit (range 12) 4646 | -8/Mines | Entered Materials 4646 | -8/Materials | Evolved 2 slots: Utility x1, Weapon x1 4647 | -8/Materials | Identified exit to Factory 5182 | -8/Materials | Discovered exit to Factory (range 5) 5380 | -8/Materials | Entered Factory 5380 | -7/Factory | Evolved 2 slots: Propulsion x1, Utility x1 5407 | -7/Factory | Discovered new exit (range 8) 5551 | -7/Factory | Fabricated Arm. Treads (x2) 5944 | -7/Factory | Sucked down chute 5944 | -7/Factory | Entered Waste 5959 | -7/Waste | EMP discharged 5959 | -7/Waste | Spotted C-40 Crusher 5980 | -7/Waste | Spotted C-40 Crusher 5997 | -7/Waste | Crushed by Compactor (1 part destroyed, 2 dropped) 6000 | -7/Waste | Crushed by Compactor (1 part destroyed, 2 dropped) 6002 | -7/Waste | Spotted C-40 Crusher 6003 | -7/Waste | Crushed by Compactor (1 part destroyed, 2 dropped) 6006 | -7/Waste | Crushed by Compactor (1 part destroyed, 2 dropped) 6024 | -7/Waste | Spotted C-40 Crusher 6026 | -7/Waste | Spotted C-40 Crusher 6031 | -7/Waste | Spotted C-40 Crusher 6037 | -7/Waste | Lost 4 parts (1n1u2w) 6050 | -7/Waste | Discovered new exit (range 11) 6055 | -7/Waste | Entered Factory 7096 | -7/Factory | Lost 4 parts (2p1n1w) 7245 | -7/Factory | Identified exit to Factory 7424 | -7/Factory | Build established: Scavenger-Mutant 7674 | -7/Factory | Core integrity fell below 50% 7695 | -7/Factory | System corruption reached 10% 7725 | -7/Factory | Build established: Mutant 7949 | -7/Factory | Entered another Factory area 7949 | -6/Factory | Evolved 2 slots: Propulsion x1, Utility x1 8015 | -6/Factory | Fabricated Hcp. Storage Unit (x1) 8155 | -6/Factory | Local fabrication network quarantined 8299 | -6/Factory | First assault squad dispatched 8476 | -6/Factory | Lost 6 parts (1p1n2u2w) 9024 | -6/Factory | Discovered new exit (range 11) 9377 | -6/Factory | Crushed by falling debris 9378 | -6/Factory | Core integrity fell below 50% 10153 | -6/Factory | Discovered new exit (range 13) 10722 | -6/Factory | Entered another Factory area 10722 | -5/Factory | Evolved 2 slots: Utility x2 10817 | -5/Factory | Sucked down chute 10817 | -5/Factory | Entered Waste 10844 | -5/Waste | Spotted C-40 Crusher 10858 | -5/Waste | Spotted C-40 Crusher 10867 | -5/Waste | Spotted C-40 Crusher 10868 | -5/Waste | Spotted C-40 Crusher 10879 | -5/Waste | Warlord forces began an assault 10879 | -5/Waste | Allies destroyed C-40 Crusher 10950 | -5/Waste | Spotted C-40 Crusher 10967 | -5/Waste | Allies destroyed C-40 Crusher 11001 | -5/Waste | Spotted C-40 Crusher 11011 | -5/Waste | Allies destroyed C-40 Crusher 11053 | -5/Waste | Build established: Scavenger-Gunner 11069 | -5/Waste | Discovered new exit (range 16) 11093 | -5/Waste | Entered Factory 11093 | -5/Factory | Accompanied by 10 allies 11487 | -5/Factory | Garrison activated, responded to threat 11491 | -5/Factory | Build established: Scavenger-Skirmisher 12035 | -5/Factory | Discovered new exit (range 11) 12191 | -5/Factory | Build established: Scavenger-Mutant 12293 | -5/Factory | First assault squad dispatched 12428 | -5/Factory | Entered Extension 12644 | -5/Extension | Build established: Scavenger-Gunner 12745 | -5/Extension | Rescued A7 12847 | -5/Extension | Rescued a captive Derelict 12848 | -5/Extension | Rescued a captive Derelict 13018 | -5/Extension | Spotted B-75 Beast 13027 | -5/Extension | Spotted B-75 Beast 13038 | -5/Extension | Destroyed B-75 Beast 13047 | -5/Extension | Destroyed B-75 Beast 13276 | -5/Extension | Discovered new exit (range 3) 13333 | -5/Extension | Build established: Scavenger-Mutant 13387 | -5/Extension | Extracted ID and sensor layout for unrecognized location from A7's data core 13528 | -5/Extension | Rescued a captive Derelict 13528 | -5/Extension | Rescued a captive Derelict 13679 | -5/Extension | Build established: Scavenger-Tank 13944 | -5/Extension | Discovered new exit (range 10) 13945 | -5/Extension | Discovered new exit (range 6) 13956 | -5/Extension | Identified exit to Cetus 13958 | -5/Extension | Identified exit to Factory 14119 | -5/Extension | Entered Cetus 14119 | -5/Cetus | Accompanied by 8 allies 14141 | -5/Cetus | Spotted Cetus Guard 14141 | -5/Cetus | Spotted Cetus Guard 14143 | -5/Cetus | Spotted Cetus Guard 14143 | -5/Cetus | Spotted Cetus Guard 14147 | -5/Cetus | Destroyed Cetus Guard 14150 | -5/Cetus | Allies destroyed Cetus Guard 14153 | -5/Cetus | Allies destroyed Cetus Guard 14154 | -5/Cetus | Allies destroyed Cetus Guard 14257 | -5/Cetus | Build established: Commander-Gunner 14436 | -5/Cetus | Discovered new exit (range 16) 14458 | -5/Cetus | Identified exit to Archives 14491 | -5/Cetus | Spotted Cetus Guard 14491 | -5/Cetus | Spotted Cetus Guard 14493 | -5/Cetus | Spotted Cetus Guard 14498 | -5/Cetus | Spotted Cetus Guard 14563 | -5/Cetus | Destroyed Cetus Guard 14577 | -5/Cetus | Destroyed Cetus Guard 14581 | -5/Cetus | Destroyed Cetus Guard 14581 | -5/Cetus | Destroyed Cetus Guard 14598 | -5/Cetus | Lost 9 parts (1p2n1u5w) 14602 | -5/Cetus | Destroyed 11 combat bots 14622 | -5/Cetus | Discovered exit to Factory (range 16) 14634 | -5/Cetus | Met Revision 17 14794 | -5/Cetus | Build established: Scavenger-Gunner 14818 | -5/Cetus | Discovered exit to Factory (range 16) 15005 | -5/Cetus | Entered Archives 15204 | -5/Archives | Unable to access archive contents 15208 | -5/Archives | Discovered exit to Factory (range 16) 15268 | -5/Archives | Discovered new exit (range 15) 15289 | -5/Archives | Identified exit to Hub_04(d) 15317 | -5/Archives | Unable to access archive contents 15333 | -5/Archives | Discovered exit to Hub_04(d) (range 15) 15456 | -5/Archives | Entered Hub_04(d) 15587 | -5/Hub_04(d) | Discovered exit to Factory (range 5) 15744 | -5/Hub_04(d) | Discovered exit to Factory (range 12) 15749 | -5/Hub_04(d) | Network Hub disabled 15765 | -5/Hub_04(d) | Entered Factory 15765 | -4/Factory | Evolved 2 slots: Utility x2 16128 | -4/Factory | Crushed by falling debris 16705 | -4/Factory | Garrison activated, responded to threat 16825 | -4/Factory | Found Prototype Launcher 16825 | -4/Factory | Identified Mni. Smartbomb Launcher 17147 | -4/Factory | Discovered new exit (range 6) 17172 | -4/Factory | Identified exit to Research 17179 | -4/Factory | Entered Research 17179 | -3/Research | Evolved 2 slots: Propulsion x1, Weapon x1 17447 | -3/Research | Discovered new exit (range 15) 17537 | -3/Research | Identified exit to Testing 17994 | -3/Research | Identified exit to Research 18158 | -3/Research | Lost 4 parts (2u2w) 18603 | -3/Research | Destroyed 7 combat bots 18611 | -3/Research | Lost 3 parts (1n2w) 18781 | -3/Research | Build established: Scavenger-Skirmisher 18810 | -3/Research | Entered another Research area 18810 | -2/Research | Evolved 2 slots: Utility x2 18872 | -2/Research | Garrison activated, responded to threat 19701 | -2/Research | Lost 10 parts (1n4u5w) 19790 | -2/Research | Identified exit to Access 19901 | -2/Research | Core integrity fell below 50% 19901 | -2/Research | Spotted B-90 Cyclops 19921 | -2/Research | Core integrity fell below 20% 19922 | -2/Research | Lost 19 parts (1p5n8u5w) 19953 | -2/Research | System corruption reached 10% 19954 | -2/Research | Entered Access 19954 | -1/Access | Evolved 2 slots: Power x1, Propulsion x1 20197 | -1/Access | Crushed by falling debris 20199 | -1/Access | Crushed by falling debris 20200 | -1/Access | Crushed by falling debris 20200 | -1/Access | System corruption reached 10% 20200 | -1/Access | Self-destructed Last Messages --------------- LOCATION=ACCESS GOAL=ESCAPE 19954_ Receiving FarCom transmissions... 19966_ Acquired Antigrav Array. 20056_ Terrain Scanner destroyed. 20074_ Acquired Maneuvering Thrusters. 20138_ The unstable cave ceiling collapses. 20197_ Crushed by falling debris. 20197_ Adv. Hacking Suite destroyed. 20197_ System corrupted by crushing effect (+2). 20199_ The unstable cave ceiling collapses. 20199_ Crushed by falling debris. 20199_ Adv. Core Analyzer destroyed. 20199_ System corrupted by crushing effect (+4). 20200_ The unstable cave ceiling collapses. 20200_ Crushed by falling debris. 20200_ Adv. Terrain Scan Processor destroyed. 20200_ System corrupted by crushing effect (+4). 20200_ Maneuvering Thrusters destroyed. 20200_ System corrupted by crushing effect (+2). Map ----- +----------------------------------------------------+ | ?????????# # | | ?????????# "########### | | ?????????# ############ | | ?????????# ############ | | ?????????# ############ | | ??######## ########?### | | ###########################?##### | | # #################### | | # ##?##############?## | | gg + #?#################? | | ? g # ###?#?###########?## | | ? # " ##?#?############### | | ?? # """ #??#?#####?####?#### | | ??# ######## """ #?#?#?????##?#???#?# | | ??# ???????# " #????##??#?????????? | | ??? ????????# #????#?#???????????? | | ??? ?????????# #???????#??????????? | | ???? ??????????# #??????????????????? | | ???? ???????????# #?#????????????????? | | ???????g?????????########"#####??????????????????? | | ??????g?????????????????####?????????????????????? | | ??????g??????????????#######?????????????????????? | | ?????????????????????# ####??????????????????????? | | ??????????????????????####???????????????????????? | | ??????????????????????#####??????????????????????? | | ???????????????????????##@#??????????????????????? | | ????????????????????????###??????????????????????? | | ?????????????????????????????????????????????????? | | ?????????????????????????????????????????????????? | | ?????????????????????????????????????????????????? | | ?????????????????????????????????????????????????? | | ?????????????????????????????????????????????????? | | ?????????????????????????????????????????????????? | | ?????????????????????????????????????????????????? | | ?????????????????????????????????????????????????? | | ?????????????????????????????????????????????????? | | ?????????????????????????????????????????????????? | | ?????????????????????????????????????????????????? | | ?????????????????????????????????????????????????? | | ?????????????????????????????????????????????????? | | ?????????????????????????????????????????????????? | | ?????????????????????????????????????????????????? | | ?????????????????????????????????????????????????? | | ?????????????????????????????????????????????????? | | ?????????????????????????????????????????????????? | | ?????????????????????????????????????????????????? | | ?????????????????????????????????????????????????? | | ?????????????????????????????????????????????????? | | ?????????????????????????????????????????????????? | | ?????????????????????????????????????????????????? | +----------------------------------------------------+ Best States ------------- Heat Dissipation 106 Coolant Potential 50 Energy Generation 25 Energy Capacity 350 Matter Stores 300 Matter Capacity 300 Sight Range 16 Terrain Scan Range 24 Terrain Scan Density 410 Jamming Range 12 Power Amplification 20 EM Shielding 3 Corruption Prevention 12 Armor Coverage 600 Resistance: TH 30 Propulsion Shielding 66 Utility Shielding 33 Weapon Shielding 66 Evasion (%) 53 Target Analysis 8 Core Analysis 10 Armor Integrity Analysis 50 Recoil Reduction 6 Particle Charging 25 Offensive Hacking 26 Item Schematics ----------------- Adv. Sensor Array | -9/Materials | Scanalyzed Signal Interpreter | -9/Materials | Scanalyzed Terrain Scanner | -9/Materials | Scanalyzed Hcp. Storage Unit | -9/Materials | Hacked Arm. Treads | -8/Materials | Scanalyzed Hacking Suite | -6/Factory | Scanalyzed Robot Schematics ------------------ None Fabricated ------------ Arm. Treads | x2 | -7/Factory Hcp. Storage Unit | x1 | -6/Factory Alien Tech Used ----------------- None Achievements -------------- Armchair Analyst Below Collateral Damage Oh No You Don't! Prison Break Revising The Future Challenges ------------ None Game ------ Seed LegRecoilAutocannon Manual? 0 Play Time 06:14:30 Cumulative 87.2 hours Start 2022.02.01 @ 23:42:08 End 2022.02.10 @ 22:19:52 Sessions 13 Manual Loads 0 Difficulty Rogue Special Mode None Game No. 45 Rogue 45 Adventurer 0 Explorer 0 Win Type - Total 1 Types 1/0/0/0/0/0/0/0/0 Lore% 33 Gallery% 48 Achievement% 34 Wizard Run 0 Options --------- ASCII 0 Keyboard 0 Movement Numpad Keybinds 0 Fullscreen 1 Font 18/Smallcaps Map View 76x50 Tactical HUD 1 Map Filters NONE Filters NONE Steam 1 RUN: 19c7cf6f-eee0-4384-acf0-004b0c33e4c6